[Event "GER-ch Youth U10 2020"]
[Site "Willingen"]
[Date "2020.10.31"]
[Round "7.3"]
[White "Lu, Yunong Elias"]
[Black "Goldmann, David"]
[Result "1/2-1/2"]
[ECO "B21"]
[WhiteElo "1521"]
[BlackElo "1644"]
[Annotator "NA RC"]
[PlyCount "116"]
[EventDate "2020.10.27"]
[EventType "swiss"]
[EventRounds "7"]
[EventCountry "GER"]
[SourceTitle "playchess.com"]
[Source "ChessBase"]
[SourceQuality "1"]
[TimeControl "40/4500+30:900+30"]

1. e4 {[%emt 0:00:00]} c5 {[%emt 0:00:00]} 2. d4 {[%emt 0:00:05]} cxd4 {[%emt 0:00:00]} 3. c3 {[%emt 0:00:10]} d3 {[%emt 0:00:00]} 4. Nf3 {[%emt 0:00:31]} Nc6 {[%emt 0:00:07]} 5. Bf4 {[%emt 0:00:17]} e6 {[%emt 0:00:39]} 6. Nbd2 {[%emt 0:00:51]} Nf6 {[%emt 0:00:40]} 7. Bxd3 {[%emt 0:00:17]} Bc5 {[%emt 0:00:27]} 8. O-O {[%emt 0:00:47]} O-O {[%emt 0:00:11]} 9. Qc2 {[%emt 0:02:12]} Nh5 {[%emt 0:01:47]} 10. Bg3 {[%emt 0:01:02]} Nxg3 {[%emt 0:00:20]} 11. hxg3 {[%emt 0:00:20]} h6 {[%emt 0:01:37]} 12. Nb3 {[%emt 0:00:52]} Bb6 {[%emt 0:01:18]} 13. Nbd4 {[%emt 0:02:59]} Bxd4 {[%emt 0:04:39]} 14. cxd4 {[%emt 0:01:57]} Nb4 {[%emt 0:00:38]} 15. Qe2 {[%emt 0:00:25]} Nxd3 {[%emt 0:00:09]} 16. Qxd3 {[%emt 0:00:28]} d6 {[%emt 0:00:37]} 17. Rac1 {[%emt 0:00:51]} Bd7 {[%emt 0:00:36]} 18. Rc3 {[%emt 0:00:33]} Qb6 {[%emt 0:00:10]} 19. Qd2 {[%emt 0:00:32]} Rac8 {[%emt 0:01:54]} 20. Rfc1 {[%emt 0:01:55]} Rc6 {[%emt 0:00:47]} 21. d5 {[%emt 0:01:06]} Rxc3 {[%emt 0:01:21]} 22. bxc3 {[%emt 0:00:28]} e5 {[%emt 0:00:21]} 23. Qc2 {[%emt 0:01:03]} f5 {[%emt 0:01:40]} 24. c4 {[%emt 0:02:52]} fxe4 {[%emt 0:00:38]} 25. Qxe4 {[%emt 0:00:23]} Bf5 {[%emt 0:00:30]} 26. Qe2 Bd7 {[%emt 0:01:35]} 27. Qe4 {[%emt 0:01:22]} Bf5 {[%emt 0:00:36]} 28. Qe2 {[%emt 0:00:10]} Bh7 {[%emt 0:01:07]} 29. Qd2 {[%emt 0:07:17]} Qc5 {[%emt 0:00:59]} 30. Qb2 {[%emt 0:01:26]} b6 {[%emt 0:01:00]} 31. Ne1 {[%emt 0:10:27]} Rf7 {[%emt 0:04:18]} 32. a4 {[%emt 0:02:05]} g5 {[%emt 0:05:15]} 33. Nf3 {[%emt 0:01:49]} Bg6 34. Nh2 {[%emt 0:00:56]} Kh7 {[%emt 0:07:25]} 35. Ng4 {[%emt 0:00:31]} a6 {[%emt 0:02:12]} 36. Ne3 {[%emt 0:00:21]} Rc7 {[%emt 0:00:13]} 37. Rc3 {[%emt 0:03:04]} b5 {[%emt 0:00:52]} 38. axb5 {[%emt 0:00:58]} axb5 39. Qc1 {[%emt 0:07:09]} b4 {[%emt 0:01:22]} 40. Rb3 {[%emt 0:02:13]} Ra7 {[%emt 0:02:16]} 41. Qb2 {[%emt 0:16:06]} Ra4 {[%emt 0:15:19]} 42. Kh2 {[%emt 0:00:54]} Qa5 {[%emt 0:01:03]} 43. Qd2 {[%emt 0:02:08]} Qc5 {[%emt 0:02:16]} 44. Qb2 {[%emt 0:00:08]} h5 {[%emt 0:05:03]} 45. Qd2 {[%emt 0:02:40]} Qd4 {[%emt 0:00:29]} 46. Qe2 {[%emt 0:04:06]} Qc5 {[%emt 0:01:36]} 47. Qd2 {[%emt 0:02:13]} Qa5 {[%emt 0:01:07]} 48. Qe1 {[%emt 0:01:13]} Qc5 {[%emt 0:01:17]} 49. Qd2 {[%emt 0:01:27]} Qd4 {[%emt 0:00:07]} 50. Qe2 {[%emt 0:00:13]} Qa1 {[%emt 0:01:01]} 51. Nf5 {[%emt 0:01:38]} Bxf5 {[%emt 0:02:00]} 52. Qxh5+ {[%emt 0:00:08]} Kg7 {[%emt 0:00:06]} 53. Qxg5+ {[%emt 0:00:06]} Bg6 {[%emt 0:00:01]} 54. Qe7+ {[%emt 0:00:22]} Kh6 55. g4 Ra3 56. Rxb4 Qc1 57. Qg7+ Kxg7 58. Rb7+ Bf7 1/2-1/2

[Event "GER-ch Youth U10 2020"]
[Site "Willingen"]
[Date "2020.10.31"]
[Round "7.4"]
[White "Dordevic, Tom"]
[Black "Burkart, Lloyd Shang"]
[Result "1/2-1/2"]
[ECO "A47"]
[WhiteElo "1535"]
[BlackElo "1508"]
[Annotator "NA RC"]
[PlyCount "51"]
[EventDate "2020.10.27"]
[EventType "swiss"]
[EventRounds "7"]
[EventCountry "GER"]
[SourceTitle "playchess.com"]
[Source "ChessBase"]
[SourceQuality "1"]
[TimeControl "40/4500+30:900+30"]

1. d4 {[%emt 0:00:00]} Nf6 {[%emt 0:00:00]} 2. Nf3 {[%emt 0:00:00]} b6 {[%emt 0:00:13]} 3. Bf4 {[%emt 0:00:00]} Ba6 {[%emt 0:00:24]} 4. Nbd2 {[%emt 0:00:42]} d5 {[%emt 0:00:43]} 5. e3 {[%emt 0:00:47]} Bxf1 {[%emt 0:00:06]} 6. Nxf1 {[%emt 0:00:15]} e6 {[%emt 0:01:07]} 7. Ng3 {[%emt 0:00:46]} Bd6 {[%emt 0:03:57]} 8. Ne5 {[%emt 0:02:02]} O-O {[%emt 0:07:26]} 9. h4 {[%emt 0:02:43]} Ne4 {[%emt 0:05:27]} 10. Nxe4 {[%emt 0:03:45]} dxe4 {[%emt 0:00:07]} 11. g4 {[%emt 0:03:06]} c5 {[%emt 0:10:00]} 12. c3 {[%emt 0:04:54]} cxd4 {[%emt 0:03:22]} 13. Qxd4 {[%emt 0:04:10]} f6 {[%emt 0:03:21]} 14. Nc4 {[%emt 0:05:04]} Bxf4 {[%emt 0:00:11]} 15. Qxd8 {[%emt 0:03:16]} Rxd8 {[%emt 0:00:20]} 16. exf4 {[%emt 0:00:05]} Na6 {[%emt 0:05:09]} 17. b3 {[%emt 0:09:50]} Rd3 {[%emt 0:01:17]} 18. Rc1 {[%emt 0:04:27]} Rc8 {[%emt 0:02:20]} 19. Ke2 {[%emt 0:05:12]} b5 {[%emt 0:00:46]} 20. Nd2 {[%emt 0:06:13]} Rdxc3 {[%emt 0:14:08]} 21. Rxc3 {[%emt 0:00:27]} Rxc3 {[%emt 0:00:18]} 22. Nxe4 {[%emt 0:00:27]} Rc2+ {[%emt 0:00:29]} 23. Ke3 {[%emt 0:00:08]} Rxa2 {[%emt 0:01:14]} 24. Rd1 {[%emt 0:02:16]} Ra3 {[%emt 0:06:21]} 25. g5 {[%emt 0:06:34]} Rxb3+ {[%emt 0:00:35]} 26. Ke2 {[%emt 0:00:06]} 1/2-1/2

[Event "GER-ch Youth U10 2020"]
[Site "Willingen"]
[Date "2020.10.31"]
[Round "7.5"]
[White "Malinowsky, Levi"]
[Black "Kullmann, Max"]
[Result "1/2-1/2"]
[ECO "A06"]
[WhiteElo "1606"]
[BlackElo "1375"]
[Annotator "NA RC"]
[PlyCount "75"]
[EventDate "2020.10.27"]
[EventType "swiss"]
[EventRounds "7"]
[EventCountry "GER"]
[SourceTitle "playchess.com"]
[Source "ChessBase"]
[SourceQuality "1"]
[TimeControl "40/4500+30:900+30"]

1. Nf3 {[%emt 0:00:00]} d5 {[%emt 0:00:34]} 2. d3 {[%emt 0:00:00]} Nc6 {[%emt 0:00:39]} 3. Nbd2 {[%emt 0:00:44]} e5 {[%emt 0:01:26]} 4. e4 {[%emt 0:00:20]} Nf6 {[%emt 0:02:38]} 5. g3 {[%emt 0:01:47]} Bg4 {[%emt 0:00:54]} 6. Bg2 {[%emt 0:01:33]} Bd6 {[%emt 0:01:31]} 7. c3 {[%emt 0:01:41]} O-O {[%emt 0:00:49]} 8. O-O {[%emt 0:01:09]} Re8 {[%emt 0:00:47]} 9. Re1 {[%emt 0:01:31]} Qe7 {[%emt 0:04:13]} 10. Nf1 {[%emt 0:01:51]} Rad8 {[%emt 0:01:48]} 11. Qe2 {[%emt 0:01:19]} dxe4 {[%emt 0:01:03]} 12. dxe4 {[%emt 0:00:17]} Bc5 {[%emt 0:00:14]} 13. h3 {[%emt 0:04:10]} Bh5 {[%emt 0:03:46]} 14. g4 {[%emt 0:00:54]} Bg6 {[%emt 0:00:18]} 15. Ng3 {[%emt 0:02:06]} h6 {[%emt 0:05:04]} 16. g5 {[%emt 0:02:00]} hxg5 {[%emt 0:00:33]} 17. Bxg5 {[%emt 0:00:20]} Qe6 {[%emt 0:02:09]} 18. Nh4 {[%emt 0:02:24]} Bh7 {[%emt 0:00:58]} 19. Nhf5 {[%emt 0:00:23]} Ne7 {[%emt 0:01:28]} 20. Bxf6 {[%emt 0:09:28]} Qxf6 {[%emt 0:09:06]} 21. Nh5 {[%emt 0:01:21]} Qg5 {[%emt 0:05:03]} 22. Nfxg7 {[%emt 0:13:09]} Rd2 {[%emt 0:11:25]} 23. Nxe8 {[%emt 0:01:12]} Rxe2 {[%emt 0:03:30]} 24. Nhf6+ {[%emt 0:00:16]} Kh8 {[%emt 0:01:36]} 25. Rxe2 {[%emt 0:00:12]} Ng8 {[%emt 0:01:15]} 26. Nxg8 {[%emt 0:01:09]} Qxg8 {[%emt 0:00:37]} 27. Nf6 {[%emt 0:00:57]} Qg6 {[%emt 0:01:09]} 28. Nxh7 {[%emt 0:01:18]} Qxh7 {[%emt 0:00:28]} 29. Rd1 {[%emt 0:04:06]} Qh4 {[%emt 0:00:40]} 30. Rd5 {[%emt 0:05:18]} Bd6 {[%emt 0:01:28]} 31. Re3 {[%emt 0:03:44]} Kg8 {[%emt 0:01:34]} 32. c4 {[%emt 0:01:50]} b6 {[%emt 0:01:07]} 33. Kf1 {[%emt 0:03:11]} Kf8 {[%emt 0:00:52]} 34. Ke2 {[%emt 0:01:15]} Ke7 {[%emt 0:01:51]} 35. Rg3 {[%emt 0:01:48]} Qf6 {[%emt 0:01:57]} 36. Rgd3 {[%emt 0:04:11]} Qh6 {[%emt 0:04:42]} 37. Rd1 {[%emt 0:04:46]} Qh5+ {[%emt 0:01:47]} 38. Ke1 1/2-1/2

[Event "GER-ch Youth U10 2020"]
[Site "Willingen"]
[Date "2020.10.31"]
[Round "7.6"]
[White "Braun, Julian"]
[Black "Middendorf, Sven-Jonas"]
[Result "0-1"]
[ECO "C54"]
[WhiteElo "1441"]
[BlackElo "1355"]
[Annotator "NA RC"]
[PlyCount "62"]
[EventDate "2020.10.27"]
[EventType "swiss"]
[EventRounds "7"]
[EventCountry "GER"]
[SourceTitle "playchess.com"]
[Source "ChessBase"]
[SourceQuality "1"]
[TimeControl "40/4500+30:900+30"]

1. e4 {[%emt 0:00:00]} e5 {[%emt 0:00:00]} 2. Nf3 {[%emt 0:00:00]} Nc6 {[%emt 0:00:00]} 3. Bc4 {[%emt 0:00:00]} Bc5 {[%emt 0:00:00]} 4. c3 {[%emt 0:00:00]} Nf6 {[%emt 0:00:00]} 5. d4 {[%emt 0:00:00]} exd4 {[%emt 0:00:00]} 6. e5 {[%emt 0:00:00]} d5 {[%emt 0:00:07]} 7. Bb5 {[%emt 0:00:06]} Ne4 {[%emt 0:00:36]} 8. cxd4 {[%emt 0:00:06]} Bb6 {[%emt 0:01:13]} 9. Nc3 {[%emt 0:00:07]} Nxc3 {[%emt 0:01:35]} 10. Bxc6+ {[%emt 0:00:46]} bxc6 {[%emt 0:00:04]} 11. bxc3 {[%emt 0:00:12]} Ba5 {[%emt 0:02:27]} 12. Qc2 {[%emt 0:02:36]} Bf5 {[%emt 0:02:47]} 13. Qb3 {[%emt 0:06:59]} Bd3 {[%emt 0:08:01]} 14. Bd2 {[%emt 0:03:46]} Rb8 {[%emt 0:05:46]} 15. Qa4 {[%emt 0:02:18]} Rb5 {[%emt 0:00:12]} 16. c4 {[%emt 0:09:34]} Bxd2+ {[%emt 0:07:07]} 17. Nxd2 {[%emt 0:00:34]} dxc4 {[%emt 0:03:36]} 18. Nxc4 {[%emt 0:01:49]} Qd5 {[%emt 0:05:43]} 19. Ne3 {[%emt 0:01:35]} Ra5 {[%emt 0:01:37]} 20. Qb4 {[%emt 0:06:07]} Qb5 21. Qxb5 {[%emt 0:03:14]} Bxb5 {[%emt 0:07:00]} 22. Kd2 {[%emt 0:01:40]} O-O {[%emt 0:01:13]} 23. Rhc1 {[%emt 0:05:48]} Rd8 {[%emt 0:02:39]} 24. Nc2 {[%emt 0:03:48]} c5 {[%emt 0:03:26]} 25. Ke3 {[%emt 0:03:39]} cxd4+ {[%emt 0:01:23]} 26. Nxd4 {[%emt 0:00:46]} Ra3+ {[%emt 0:00:31]} 27. Nb3 {[%emt 0:01:00]} Rd3+ 28. Ke4 {[%emt 0:01:03]} Ra4+ {[%emt 0:00:35]} 29. Kf5 {[%emt 0:01:09]} Bd7+ {[%emt 0:00:14]} 30. Kg5 {[%emt 0:00:38]} h6+ {[%emt 0:00:16]} 31. Kh5 {[%emt 0:00:31]} Bg4+ {[%emt 0:00:13]} 0-1

[Event "GER-ch Youth U10 2020"]
[Site "Willingen"]
[Date "2020.10.31"]
[Round "7.7"]
[White "Marcziter, Alex"]
[Black "Aniol, Nico"]
[Result "1-0"]
[ECO "C59"]
[WhiteElo "1401"]
[BlackElo "1417"]
[Annotator "NA RC"]
[PlyCount "137"]
[EventDate "2020.10.27"]
[EventType "swiss"]
[EventRounds "7"]
[EventCountry "GER"]
[SourceTitle "playchess.com"]
[Source "ChessBase"]
[SourceQuality "1"]
[TimeControl "40/4500+30:900+30"]

1. e4 {[%emt 0:00:00]} e5 {[%emt 0:00:03]} 2. Nf3 {[%emt 0:00:47]} Nc6 {[%emt 0:00:51]} 3. Bc4 {[%emt 0:01:45]} Nf6 {[%emt 0:01:39]} 4. Ng5 {[%emt 0:01:34]} d5 {[%emt 0:01:39]} 5. exd5 {[%emt 0:01:51]} Na5 {[%emt 0:01:34]} 6. Bb5+ {[%emt 0:02:07]} c6 {[%emt 0:02:18]} 7. dxc6 {[%emt 0:01:27]} bxc6 {[%emt 0:05:32]} 8. Be2 {[%emt 0:01:31]} h6 {[%emt 0:02:28]} 9. Nf3 {[%emt 0:01:33]} e4 {[%emt 0:03:26]} 10. Ne5 {[%emt 0:01:44]} Bd6 {[%emt 0:01:52]} 11. d4 {[%emt 0:01:23]} exd3 {[%emt 0:01:42]} 12. Nxd3 {[%emt 0:01:21]} Qc7 {[%emt 0:05:50]} 13. g3 {[%emt 0:02:42]} Bh3 {[%emt 0:02:38]} 14. Bf4 {[%emt 0:03:34]} Rd8 {[%emt 0:07:02]} 15. Nd2 {[%emt 0:03:30]} O-O {[%emt 0:01:44]} 16. Bxd6 {[%emt 0:03:33]} Rxd6 {[%emt 0:01:27]} 17. Nf4 {[%emt 0:00:22]} Bf5 {[%emt 0:01:43]} 18. O-O {[%emt 0:00:42]} Rfd8 {[%emt 0:01:44]} 19. Bd3 {[%emt 0:02:14]} g5 {[%emt 0:05:04]} 20. Nh5 {[%emt 0:06:59]} Bxd3 {[%emt 0:03:15]} 21. cxd3 {[%emt 0:02:50]} Nh7 {[%emt 0:01:48]} 22. Qc2 {[%emt 0:04:13]} Rxd3 {[%emt 0:07:33]} 23. Ne4 {[%emt 0:02:26]} Nb7 {[%emt 0:04:49]} 24. Rfe1 {[%emt 0:02:51]} c5 {[%emt 0:01:34]} 25. Nef6+ {[%emt 0:01:38]} Nxf6 {[%emt 0:00:17]} 26. Nxf6+ {[%emt 0:00:13]} Kh8 {[%emt 0:00:16]} 27. Rad1 {[%emt 0:08:20]} Qd6 {[%emt 0:01:58]} 28. Rxd3 {[%emt 0:05:16]} Qxd3 {[%emt 0:00:21]} 29. Qxd3 {[%emt 0:00:15]} Rxd3 {[%emt 0:00:08]} 30. Re7 {[%emt 0:00:10]} Nd6 {[%emt 0:00:43]} 31. Rxa7 {[%emt 0:00:52]} Kg7 {[%emt 0:01:13]} 32. Nd7 {[%emt 0:01:12]} Nb5 {[%emt 0:01:40]} 33. Rb7 {[%emt 0:00:59]} Nd6 {[%emt 0:00:24]} 34. Rb8 {[%emt 0:01:08]} c4 {[%emt 0:00:53]} 35. Ne5 {[%emt 0:01:35]} Rd1+ {[%emt 0:00:18]} 36. Kg2 {[%emt 0:00:10]} Re1 {[%emt 0:00:12]} 37. Nf3 {[%emt 0:00:42]} Re2 {[%emt 0:00:24]} 38. Nd4 {[%emt 0:00:40]} Rd2 {[%emt 0:00:18]} 39. Nc6 {[%emt 0:01:11]} g4 {[%emt 0:00:49]} 40. Ne5 {[%emt 0:01:10]} h5 {[%emt 0:00:38]} 41. Rd8 {[%emt 0:16:10]} Kf6 {[%emt 0:15:48]} 42. Nc6 {[%emt 0:00:58]} Ke6 {[%emt 0:00:14]} 43. Rb8 {[%emt 0:02:08]} Ne4 {[%emt 0:01:55]} 44. Re8+ {[%emt 0:00:27]} Kf5 {[%emt 0:00:05]} 45. Re5+ {[%emt 0:00:37]} Kf6 {[%emt 0:00:30]} 46. Rxe4 {[%emt 0:00:15]} Rxb2 {[%emt 0:00:02]} 47. a4 {[%emt 0:00:51]} c3 {[%emt 0:00:13]} 48. Rc4 {[%emt 0:00:16]} c2 {[%emt 0:00:11]} 49. Nd4 {[%emt 0:00:14]} c1=Q {[%emt 0:00:39]} 50. Rxc1 {[%emt 0:00:18]} Rb4 {[%emt 0:00:02]} 51. Ne2 {[%emt 0:01:09]} Rxa4 {[%emt 0:00:22]} 52. Nf4 {[%emt 0:00:13]} Kg5 {[%emt 0:00:18]} 53. Rc5+ {[%emt 0:00:13]} f5 {[%emt 0:00:04]} 54. Rc6 {[%emt 0:00:11]} Rxf4 {[%emt 0:00:22]} 55. gxf4+ {[%emt 0:00:08]} Kxf4 {[%emt 0:00:08]} 56. Rc4+ {[%emt 0:00:30]} Kg5 {[%emt 0:00:07]} 57. f3 {[%emt 0:00:07]} Kh4 {[%emt 0:00:28]} 58. fxg4 {[%emt 0:00:09]} fxg4 {[%emt 0:00:05]} 59. Rc5 {[%emt 0:00:13]} g3 {[%emt 0:00:12]} 60. hxg3+ {[%emt 0:00:04]} Kg4 {[%emt 0:00:08]} 61. Rc4+ {[%emt 0:00:54]} Kg5 {[%emt 0:00:56]} 62. Kf3 {[%emt 0:00:10]} Kf5 {[%emt 0:00:10]} 63. Rc5+ {[%emt 0:00:04]} Kg6 {[%emt 0:00:05]} 64. Kf4 {[%emt 0:00:05]} Kh6 {[%emt 0:00:08]} 65. Rc6+ {[%emt 0:00:06]} Kg7 {[%emt 0:00:07]} 66. Kg5 {[%emt 0:00:03]} h4 {[%emt 0:00:08]} 67. gxh4 {[%emt 0:00:05]} Kg8 {[%emt 0:00:08]} 68. Kf6 {[%emt 0:00:05]} Kh8 {[%emt 0:00:06]} 69. Kg6 {[%emt 0:00:04]} 1-0

[Event "GER-ch Youth U10 2020"]
[Site "Willingen"]
[Date "2020.10.31"]
[Round "7.8"]
[White "Schuricht, Emil Frederick"]
[Black "Krstovic, Marko"]
[Result "1-0"]
[ECO "E20"]
[WhiteElo "1451"]
[BlackElo "1443"]
[Annotator "NA RC"]
[PlyCount "43"]
[EventDate "2020.10.27"]
[EventType "swiss"]
[EventRounds "7"]
[EventCountry "GER"]
[SourceTitle "playchess.com"]
[Source "ChessBase"]
[SourceQuality "1"]
[TimeControl "40/4500+30:900+30"]

1. d4 {[%emt 0:00:00]} Nf6 {[%emt 0:00:00]} 2. c4 {[%emt 0:00:00]} e6 {[%emt 0:00:00]} 3. Nc3 {[%emt 0:00:00]} Bb4 {[%emt 0:00:00]} 4. f3 {[%emt 0:00:00]} c5 {[%emt 0:00:00]} 5. a3 {[%emt 0:00:00]} Bxc3+ {[%emt 0:00:00]} 6. bxc3 {[%emt 0:00:00]} b6 {[%emt 0:00:00]} 7. e4 {[%emt 0:00:26]} d5 {[%emt 0:00:24]} 8. cxd5 {[%emt 0:00:24]} exd5 {[%emt 0:00:06]} 9. e5 {[%emt 0:00:40]} Nfd7 {[%emt 0:00:06]} 10. f4 {[%emt 0:01:36]} Bb7 {[%emt 0:00:14]} 11. Nf3 {[%emt 0:00:16]} cxd4 {[%emt 0:00:16]} 12. cxd4 {[%emt 0:00:20]} Nc6 {[%emt 0:00:18]} 13. Bd3 {[%emt 0:00:11]} O-O {[%emt 0:00:08]} 14. Bxh7+ {[%emt 0:03:21]} Kxh7 {[%emt 0:06:52]} 15. Ng5+ {[%emt 0:00:18]} Kh6 {[%emt 0:00:36]} 16. Qg4 {[%emt 0:01:22]} Nf6 {[%emt 0:03:21]} 17. Qh4+ {[%emt 0:02:38]} Nh5 {[%emt 0:02:02]} 18. f5 {[%emt 0:00:19]} Qe7 {[%emt 0:03:11]} 19. Ne4+ {[%emt 0:03:38]} Kh7 {[%emt 0:00:47]} 20. Qxh5+ {[%emt 0:00:07]} Kg8 {[%emt 0:00:11]} 21. f6 {[%emt 0:05:12]} Qe6 {[%emt 0:03:06]} 22. Qg5 {[%emt 0:03:47]} 1-0

[Event "GER-ch Youth U10 2020"]
[Site "Willingen"]
[Date "2020.10.31"]
[Round "7.9"]
[White "Aweh, Mads"]
[Black "Geist, Tim"]
[Result "0-1"]
[ECO "A40"]
[WhiteElo "1328"]
[BlackElo "1578"]
[Annotator "NA RC"]
[PlyCount "126"]
[EventDate "2020.10.27"]
[EventType "swiss"]
[EventRounds "7"]
[EventCountry "GER"]
[SourceTitle "playchess.com"]
[Source "ChessBase"]
[SourceQuality "1"]
[TimeControl "40/4500+30:900+30"]

1. d4 {[%emt 0:00:00]} e6 {[%emt 0:00:11]} 2. Bf4 {[%emt 0:00:00]} d5 {[%emt 0:00:29]} 3. e3 {[%emt 0:00:09]} c5 {[%emt 0:00:32]} 4. c3 {[%emt 0:00:21]} Nf6 {[%emt 0:00:42]} 5. Nf3 {[%emt 0:00:25]} Bd6 {[%emt 0:00:56]} 6. Bxd6 {[%emt 0:00:41]} Qxd6 {[%emt 0:00:05]} 7. Bd3 {[%emt 0:00:54]} O-O {[%emt 0:00:31]} 8. O-O {[%emt 0:00:33]} b6 {[%emt 0:00:45]} 9. Nbd2 {[%emt 0:00:13]} Nbd7 {[%emt 0:01:07]} 10. e4 {[%emt 0:02:07]} dxe4 {[%emt 0:00:44]} 11. Nxe4 {[%emt 0:00:15]} Nxe4 {[%emt 0:00:32]} 12. Bxe4 {[%emt 0:00:10]} Rb8 {[%emt 0:00:22]} 13. Qc2 {[%emt 0:01:43]} f5 {[%emt 0:02:47]} 14. Bd3 {[%emt 0:00:55]} Bb7 {[%emt 0:00:58]} 15. Be2 {[%emt 0:01:24]} Rbc8 {[%emt 0:01:31]} 16. dxc5 {[%emt 0:00:42]} Nxc5 {[%emt 0:00:36]} 17. Rad1 {[%emt 0:01:03]} Qc7 {[%emt 0:00:57]} 18. Nd4 {[%emt 0:01:50]} Kh8 {[%emt 0:02:00]} 19. Bc4 {[%emt 0:04:02]} e5 {[%emt 0:00:43]} 20. Ne6 {[%emt 0:00:52]} Nxe6 {[%emt 0:01:27]} 21. Bxe6 {[%emt 0:00:12]} Be4 {[%emt 0:00:20]} 22. Qb3 {[%emt 0:01:20]} Rcd8 {[%emt 0:01:00]} 23. Bd5 {[%emt 0:01:34]} Bxd5 {[%emt 0:01:34]} 24. Rxd5 {[%emt 0:00:31]} g6 {[%emt 0:01:30]} 25. Rfd1 {[%emt 0:00:36]} Kg7 {[%emt 0:03:38]} 26. h3 {[%emt 0:02:28]} e4 {[%emt 0:02:16]} 27. Qb4 {[%emt 0:01:42]} Rxd5 {[%emt 0:01:05]} 28. Rxd5 {[%emt 0:00:10]} Qf7 {[%emt 0:00:18]} 29. Qd4+ {[%emt 0:00:26]} Qf6 {[%emt 0:00:11]} 30. Rd7+ {[%emt 0:00:33]} Rf7 {[%emt 0:00:45]} 31. Rxf7+ {[%emt 0:00:41]} Kxf7 {[%emt 0:00:12]} 32. Qxf6+ {[%emt 0:00:52]} Kxf6 {[%emt 0:00:04]} 33. Kf1 {[%emt 0:00:26]} Ke5 {[%emt 0:00:20]} 34. Ke2 {[%emt 0:00:20]} f4 {[%emt 0:00:21]} 35. g3 {[%emt 0:02:20]} g5 {[%emt 0:00:34]} 36. b3 {[%emt 0:00:52]} a6 {[%emt 0:02:49]} 37. a3 {[%emt 0:03:17]} h6 {[%emt 0:01:23]} 38. Kd2 {[%emt 0:04:08]} Kd5 {[%emt 0:00:41]} 39. Ke2 {[%emt 0:02:02]} b5 {[%emt 0:00:57]} 40. Kd2 {[%emt 0:01:03]} a5 {[%emt 0:00:19]} 41. Ke2 {[%emt 0:15:43]} Kc5 {[%emt 0:16:49]} 42. h4 {[%emt 0:02:03]} a4 {[%emt 0:00:56]} 43. hxg5 {[%emt 0:03:08]} hxg5 {[%emt 0:00:19]} 44. bxa4 {[%emt 0:01:03]} bxa4 {[%emt 0:00:17]} 45. gxf4 {[%emt 0:00:37]} gxf4 {[%emt 0:00:04]} 46. f3 {[%emt 0:01:48]} e3 {[%emt 0:00:48]} 47. Kd1 {[%emt 0:00:20]} Kc4 {[%emt 0:00:09]} 48. Kc2 {[%emt 0:00:07]} e2 {[%emt 0:00:27]} 49. Kd2 {[%emt 0:00:10]} e1=Q+ 50. Kxe1 Kxc3 {[%emt 0:00:55]} 51. Ke2 {[%emt 0:00:41]} Kc2 {[%emt 0:00:08]} 52. Ke1 {[%emt 0:00:17]} Kd3 {[%emt 0:00:08]} 53. Kd1 {[%emt 0:00:15]} Ke3 {[%emt 0:00:06]} 54. Kc2 {[%emt 0:00:04]} Kxf3 {[%emt 0:00:05]} 55. Kc3 {[%emt 0:00:06]} Ke2 {[%emt 0:00:05]} 56. Kb4 {[%emt 0:00:05]} f3 {[%emt 0:00:05]} 57. Kxa4 {[%emt 0:00:04]} f2 {[%emt 0:00:07]} 58. Ka5 {[%emt 0:00:13]} f1=Q {[%emt 0:00:09]} 59. a4 {[%emt 0:00:09]} Qb1 {[%emt 0:00:15]} 60. Ka6 {[%emt 0:00:37]} Kd3 {[%emt 0:00:06]} 61. a5 {[%emt 0:00:11]} Kc4 {[%emt 0:00:09]} 62. Ka7 {[%emt 0:00:08]} Kc5 {[%emt 0:00:19]} 63. Ka8 {[%emt 0:00:22]} Qh7 {[%emt 0:00:00]} 0-1

[Event "GER-ch Youth U10 2020"]
[Site "Willingen"]
[Date "2020.10.31"]
[Round "7.10"]
[White "Xue, Luka"]
[Black "Bangert, Jonas"]
[Result "0-1"]
[ECO "B14"]
[WhiteElo "1473"]
[BlackElo "1549"]
[Annotator "NA RC"]
[PlyCount "72"]
[EventDate "2020.10.27"]
[EventType "swiss"]
[EventRounds "7"]
[EventCountry "GER"]
[SourceTitle "playchess.com"]
[Source "ChessBase"]
[SourceQuality "1"]
[TimeControl "40/4500+30:900+30"]

1. e4 {[%emt 0:00:00]} c6 {[%emt 0:00:00]} 2. d4 {[%emt 0:00:01]} d5 {[%emt 0:00:00]} 3. exd5 {[%emt 0:00:29]} cxd5 {[%emt 0:00:00]} 4. c4 {[%emt 0:00:15]} e6 {[%emt 0:00:59]} 5. Nc3 {[%emt 0:00:40]} Nf6 {[%emt 0:00:21]} 6. Nf3 {[%emt 0:00:25]} Be7 {[%emt 0:04:06]} 7. Bf4 {[%emt 0:08:40]} O-O {[%emt 0:15:12]} 8. Bd3 {[%emt 0:01:27]} dxc4 {[%emt 0:01:27]} 9. Bxc4 {[%emt 0:00:09]} a6 {[%emt 0:00:34]} 10. a4 {[%emt 0:01:44]} Bd7 {[%emt 0:04:42]} 11. O-O {[%emt 0:00:35]} Bc6 {[%emt 0:00:43]} 12. Ne5 {[%emt 0:01:18]} Qb6 {[%emt 0:13:05]} 13. Qd3 {[%emt 0:13:14]} Rd8 {[%emt 0:02:40]} 14. Be3 {[%emt 0:01:03]} Bd5 {[%emt 0:03:36]} 15. a5 Qc7 {[%emt 0:04:24]} 16. Bxd5 {[%emt 0:17:27]} Nxd5 {[%emt 0:00:44]} 17. Ne4 {[%emt 0:02:47]} Nc6 {[%emt 0:03:04]} 18. Rfc1 {[%emt 0:01:45]} Nxe5 {[%emt 0:01:22]} 19. dxe5 {[%emt 0:03:34]} Qxe5 {[%emt 0:01:18]} 20. Bd4 {[%emt 0:00:43]} Qb8 {[%emt 0:04:24]} 21. Qf3 {[%emt 0:03:14]} Qf4 {[%emt 0:05:04]} 22. Qxf4 {[%emt 0:01:33]} Nxf4 {[%emt 0:00:07]} 23. Bb6 {[%emt 0:00:30]} Rd7 {[%emt 0:07:19]} 24. Rd1 {[%emt 0:04:07]} Nd5 {[%emt 0:02:28]} 25. Bd4 {[%emt 0:01:07]} Rc8 {[%emt 0:00:44]} 26. Rac1 {[%emt 0:01:54]} Rxc1 {[%emt 0:01:00]} 27. Rxc1 {[%emt 0:00:08]} Nf4 {[%emt 0:00:31]} 28. Rd1 {[%emt 0:06:05]} Ne2+ {[%emt 0:00:22]} 29. Kf1 {[%emt 0:00:06]} Rxd4 {[%emt 0:01:00]} 30. Kxe2 {[%emt 0:00:24]} Rxe4+ {[%emt 0:00:06]} 31. Kf3 {[%emt 0:00:09]} Rb4 {[%emt 0:00:08]} 32. Rd7 {[%emt 0:00:44]} Bf8 {[%emt 0:00:28]} 33. Rd2 {[%emt 0:00:41]} Rb5 {[%emt 0:00:08]} 34. Ke4 {[%emt 0:00:45]} Rxa5 {[%emt 0:00:17]} 35. b3 {[%emt 0:00:42]} Rb5 {[%emt 0:00:20]} 36. Rd3 {[%emt 0:00:09]} f6 {[%emt 0:00:43]} 0-1